[Event "Titled Tuesday Blitz June 13 Late 2023"]
[White "Sarkar, Justin"]
[Black "Powell, Paul"]
[WhiteFideId "2010011"]
[BlackFideId "2005840"]
[WhiteElo "2151"]
[BlackElo "2168"]
[Result "1-0"]
[Round "9"]
[TimeControl "180+2"]
[Date "2023.06.13"]
[WhiteClock "0:00:03"]
[BlackClock "0:00:09"]
[Board "123"]

1. d4 {[%clk 0:02:41]}  Nf6 {[%clk 0:02:59]} 2. c4 {[%clk 0:02:41]}  e5 {[%clk 0:02:59]} 3. dxe5 {[%clk 0:02:37]}  Ne4 {[%clk 0:02:59]} 4. Nf3 {[%clk 0:02:22]}  Bb4+ {[%clk 0:02:58]} 5. Nbd2 {[%clk 0:02:21]}  Nc6 {[%clk 0:02:56]} 6. a3 {[%clk 0:02:11]}  Bxd2+ {[%clk 0:02:55]} 7. Bxd2 {[%clk 0:02:09]}  Nxd2 {[%clk 0:02:54]} 8. Qxd2 {[%clk 0:02:08]}  O-O {[%clk 0:02:53]} 9. g3 {[%clk 0:01:48]}  Qe7 {[%clk 0:02:53]} 10. Bg2 {[%clk 0:01:27]}  Nxe5 {[%clk 0:02:49]} 11. Nxe5 {[%clk 0:01:27]}  Qxe5 {[%clk 0:02:50]} 12. O-O {[%clk 0:01:27]}  d6 {[%clk 0:02:27]} 13. b4 {[%clk 0:01:20]}  Re8 {[%clk 0:02:25]} 14. e3 {[%clk 0:01:18]}  Rb8 {[%clk 0:02:19]} 15. Rac1 {[%clk 0:01:13]}  Bf5 {[%clk 0:02:06]} 16. c5 {[%clk 0:01:08]}  Red8 {[%clk 0:02:04]} 17. Rfd1 {[%clk 0:00:44]}  Qe7 {[%clk 0:01:57]} 18. cxd6 {[%clk 0:00:30]}  Rxd6 {[%clk 0:01:54]} 19. Qc3 {[%clk 0:00:30]}  c6 {[%clk 0:01:07]} 20. Qc5 {[%clk 0:00:26]}  Rxd1+ {[%clk 0:01:05]} 21. Rxd1 {[%clk 0:00:26]}  Qxc5 {[%clk 0:00:54]} 22. bxc5 {[%clk 0:00:27]}  Kf8 {[%clk 0:00:51]} 23. e4 {[%clk 0:00:21]}  Be6 {[%clk 0:00:50]} 24. e5 {[%clk 0:00:18]}  Ke7 {[%clk 0:00:49]} 25. f4 {[%clk 0:00:18]}  Rd8 {[%clk 0:00:39]} 26. Rd6 {[%clk 0:00:17]}  Bd7 {[%clk 0:00:22]} 27. Kf2 {[%clk 0:00:16]}  Rb8 {[%clk 0:00:19]} 28. Ke3 {[%clk 0:00:12]}  a5 {[%clk 0:00:18]} 29. Kd4 {[%clk 0:00:11]}  a4 {[%clk 0:00:19]} 30. Be4 {[%clk 0:00:10]}  g6 {[%clk 0:00:17]} 31. Bc2 {[%clk 0:00:09]}  Ra8 {[%clk 0:00:17]} 32. Kc4 {[%clk 0:00:09]}  Ra5 {[%clk 0:00:17]} 33. Rd1 {[%clk 0:00:05]}  Be6+ {[%clk 0:00:17]} 34. Kd4 {[%clk 0:00:05]}  Rb5 {[%clk 0:00:12]} 35. Rb1 {[%clk 0:00:04]}  Kd7 {[%clk 0:00:09]} 36. Rxb5 {[%clk 0:00:04]}  cxb5 {[%clk 0:00:09]} 37. Kc3 {[%clk 0:00:04]}  Kc7 {[%clk 0:00:08]} 38. Be4 {[%clk 0:00:04]}  b6 {[%clk 0:00:08]} 39. Kb4 {[%clk 0:00:03]}  Bd7 {[%clk 0:00:06]} 40. cxb6+ {[%clk 0:00:03]}  Kxb6 {[%clk 0:00:06]} 41. Bd5 {[%clk 0:00:03]}  Be8 {[%clk 0:00:06]} 42. g4 {[%clk 0:00:03]}  h6 {[%clk 0:00:06]} 43. h3 {[%clk 0:00:03]}  Ka6 {[%clk 0:00:06]} 44. f5 {[%clk 0:00:03]}  gxf5 {[%clk 0:00:05]} 45. gxf5 {[%clk 0:00:03]}  Kb6 {[%clk 0:00:06]} 46. f6 {[%clk 0:00:02]}  Ka6 {[%clk 0:00:06]} 47. e6 {[%clk 0:00:02]}  fxe6 {[%clk 0:00:05]} 48. Bxe6 {[%clk 0:00:03]}  Kb6 {[%clk 0:00:05]} 49. f7 {[%clk 0:00:03]}  Bxf7 {[%clk 0:00:06]} 50. Bxf7 {[%clk 0:00:03]}  Kc6 {[%clk 0:00:06]} 51. Be8+ {[%clk 0:00:04]}  Kb6 {[%clk 0:00:06]} 52. Bxb5 {[%clk 0:00:03]}  Kc7 {[%clk 0:00:06]} 53. Kxa4 {[%clk 0:00:04]}  Kb6 {[%clk 0:00:07]} 54. Kb4 {[%clk 0:00:04]}  Ka7 {[%clk 0:00:08]} 55. h4 {[%clk 0:00:03]}  Kb6 {[%clk 0:00:08]} 56. a4 {[%clk 0:00:03]}  Kc7 {[%clk 0:00:09]} 57. a5 {[%clk 0:00:03]}  Kb7 {[%clk 0:00:09]} 58. Kc5 {[%clk 0:00:03]}  Ka7 {[%clk 0:00:10]} 59. a6 {[%clk 0:00:03]}  Kb8 {[%clk 0:00:10]} 60. Kb6 {[%clk 0:00:03]}  Ka8 {[%clk 0:00:10]} 61. Bd7 {[%clk 0:00:03]}  Kb8 {[%clk 0:00:09]} 62. a7+ {[%clk 0:00:03]} 1-0


[Site "https://www.chess.com"]

[Event "Titled Tuesday Blitz June 13 Late 2023"]
[White "rionelG"]
[Black "Garmendiarov"]
[WhiteElo "2212"]
[BlackElo "2339"]
[Result "1-0"]
[Round "9"]
[TimeControl "180+2"]
[Date "2023.06.13"]
[WhiteClock "0:00:17"]
[BlackClock "0:00:08"]
[Board "127"]

1. e4 {[%clk 0:03:00]}  c5 {[%clk 0:02:59]} 2. g3 {[%clk 0:02:59]}  Nc6 {[%clk 0:02:58]} 3. Bg2 {[%clk 0:02:58]}  g6 {[%clk 0:02:59]} 4. Ne2 {[%clk 0:02:58]}  Bg7 {[%clk 0:02:59]} 5. c3 {[%clk 0:02:59]}  d6 {[%clk 0:02:53]} 6. d4 {[%clk 0:02:59]}  cxd4 {[%clk 0:02:45]} 7. cxd4 {[%clk 0:03:00]}  Nf6 {[%clk 0:02:45]} 8. Nbc3 {[%clk 0:02:59]}  O-O {[%clk 0:02:45]} 9. h3 {[%clk 0:03:00]}  e5 {[%clk 0:02:39]} 10. Be3 {[%clk 0:02:59]}  exd4 {[%clk 0:02:22]} 11. Nxd4 {[%clk 0:03:00]}  Re8 {[%clk 0:02:21]} 12. O-O {[%clk 0:02:59]}  a6 {[%clk 0:01:55]} 13. Qd2 {[%clk 0:02:58]}  Ne5 {[%clk 0:01:45]} 14. b3 {[%clk 0:02:57]}  Qa5 {[%clk 0:01:42]} 15. Rac1 {[%clk 0:02:50]}  Bd7 {[%clk 0:01:38]} 16. f4 {[%clk 0:02:44]}  Nc6 {[%clk 0:01:36]} 17. Rfd1 {[%clk 0:02:43]}  Rad8 {[%clk 0:01:27]} 18. Qf2 {[%clk 0:02:28]}  Rc8 {[%clk 0:01:01]} 19. g4 {[%clk 0:01:56]}  Nxd4 {[%clk 0:01:00]} 20. Bxd4 {[%clk 0:01:56]}  Bc6 {[%clk 0:00:57]} 21. Nd5 {[%clk 0:01:39]}  Nxd5 {[%clk 0:00:35]} 22. exd5 {[%clk 0:01:39]}  Bxd5 {[%clk 0:00:18]} 23. Rxc8 {[%clk 0:01:25]}  Rxc8 {[%clk 0:00:16]} 24. Bb6 {[%clk 0:01:25]}  Qb5 {[%clk 0:00:09]} 25. Bxd5 {[%clk 0:01:21]}  Rc3 {[%clk 0:00:07]} 26. Bc4 {[%clk 0:01:17]}  Qe8 {[%clk 0:00:06]} 27. Bd4 {[%clk 0:01:03]}  Bxd4 {[%clk 0:00:05]} 28. Rxd4 {[%clk 0:01:04]}  Rc1+ {[%clk 0:00:04]} 29. Kg2 {[%clk 0:00:57]}  Qc6+ {[%clk 0:00:05]} 30. Rd5 {[%clk 0:00:53]}  b5 {[%clk 0:00:04]} 31. Qd2 {[%clk 0:00:17]}  bxc4 {[%clk 0:00:04]} 32. Kg3 {[%clk 0:00:17]}  c3 {[%clk 0:00:04]} 33. Qxc1 {[%clk 0:00:17]}  Qxd5 {[%clk 0:00:04]} 34. Qxc3 {[%clk 0:00:17]}  Qe4 {[%clk 0:00:04]} 35. a4 {[%clk 0:00:17]}  d5 {[%clk 0:00:04]} 36. Qf3 {[%clk 0:00:16]}  Qd4 {[%clk 0:00:02]} 37. f5 {[%clk 0:00:16]}  gxf5 {[%clk 0:00:02]} 38. gxf5 {[%clk 0:00:15]}  Kg7 {[%clk 0:00:02]} 39. Qg4+ {[%clk 0:00:15]}  Qxg4+ {[%clk 0:00:02]} 40. hxg4 {[%clk 0:00:15]}  Kf6 {[%clk 0:00:03]} 41. Kf4 {[%clk 0:00:15]}  h6 {[%clk 0:00:03]} 42. b4 {[%clk 0:00:15]}  d4 {[%clk 0:00:03]} 43. Ke4 {[%clk 0:00:15]}  Kg5 {[%clk 0:00:04]} 44. b5 {[%clk 0:00:15]}  axb5 {[%clk 0:00:04]} 45. axb5 {[%clk 0:00:15]}  Kxg4 {[%clk 0:00:04]} 46. b6 {[%clk 0:00:16]}  h5 {[%clk 0:00:05]} 47. b7 {[%clk 0:00:16]}  h4 {[%clk 0:00:06]} 48. b8=Q {[%clk 0:00:16]}  h3 {[%clk 0:00:07]} 49. Qf4+ {[%clk 0:00:15]}  Kh5 {[%clk 0:00:07]} 50. Qg3 {[%clk 0:00:16]}  d3 {[%clk 0:00:06]} 51. Qxh3+ {[%clk 0:00:15]}  Kg5 {[%clk 0:00:07]} 52. Qxd3 {[%clk 0:00:15]}  f6 {[%clk 0:00:07]} 53. Qg3+ {[%clk 0:00:16]}  Kh5 {[%clk 0:00:07]} 54. Qg6+ {[%clk 0:00:16]}  Kh4 {[%clk 0:00:08]} 55. Kf3 {[%clk 0:00:16]}  Kh3 {[%clk 0:00:08]} 56. Qh6# {[%clk 0:00:17]} 1-0


[Site "https://www.chess.com"]

[Event "Titled Tuesday Blitz June 13 Late 2023"]
[White "Celestino, Rafael Teixeira"]
[Black "Howell, David W L"]
[WhiteFideId "2108925"]
[BlackFideId "410608"]
[WhiteElo "2245"]
[BlackElo "2567"]
[Result "0-1"]
[Round "9"]
[TimeControl "180+2"]
[Date "2023.06.13"]
[WhiteClock "0:00:26"]
[BlackClock "0:00:11"]
[Board "128"]

1. e4 {[%clk 0:03:00]}  c5 {[%clk 0:02:33]} 2. Nf3 {[%clk 0:03:00]}  d6 {[%clk 0:02:28]} 3. d4 {[%clk 0:02:59]}  cxd4 {[%clk 0:02:28]} 4. Nxd4 {[%clk 0:03:00]}  Nf6 {[%clk 0:02:29]} 5. Nc3 {[%clk 0:02:59]}  Nc6 {[%clk 0:02:29]} 6. Bg5 {[%clk 0:02:57]}  e6 {[%clk 0:02:23]} 7. Be2 {[%clk 0:02:56]}  Be7 {[%clk 0:02:19]} 8. O-O {[%clk 0:02:57]}  O-O {[%clk 0:02:19]} 9. Re1 {[%clk 0:02:57]}  a6 {[%clk 0:02:04]} 10. Qd2 {[%clk 0:02:56]}  Bd7 {[%clk 0:02:02]} 11. Rad1 {[%clk 0:02:51]}  Rc8 {[%clk 0:02:02]} 12. Nxc6 {[%clk 0:02:34]}  Bxc6 {[%clk 0:02:01]} 13. Bxf6 {[%clk 0:02:28]}  Bxf6 {[%clk 0:02:02]} 14. Qxd6 {[%clk 0:02:28]}  Bxc3 {[%clk 0:01:27]} 15. bxc3 {[%clk 0:02:20]}  Qa5 {[%clk 0:01:07]} 16. Bd3 {[%clk 0:01:41]}  Qxc3 {[%clk 0:00:58]} 17. Re3 {[%clk 0:01:39]}  Rfd8 {[%clk 0:00:51]} 18. Qg3 {[%clk 0:01:18]}  e5 {[%clk 0:00:50]} 19. Qg5 {[%clk 0:01:08]}  h6 {[%clk 0:00:45]} 20. Qh4 {[%clk 0:00:55]}  Qc5 {[%clk 0:00:39]} 21. Rg3 {[%clk 0:00:51]}  Rd6 {[%clk 0:00:36]} 22. Qg4 {[%clk 0:00:44]}  g6 {[%clk 0:00:24]} 23. Qxc8+ {[%clk 0:00:44]}  Kg7 {[%clk 0:00:24]} 24. Qg4 {[%clk 0:00:41]}  Bd7 {[%clk 0:00:20]} 25. Qe2 {[%clk 0:00:41]}  Be6 {[%clk 0:00:21]} 26. h4 {[%clk 0:00:40]}  Bxa2 {[%clk 0:00:20]} 27. h5 {[%clk 0:00:39]}  g5 {[%clk 0:00:20]} 28. Qf3 {[%clk 0:00:36]}  Be6 {[%clk 0:00:20]} 29. Rb1 {[%clk 0:00:36]}  b5 {[%clk 0:00:20]} 30. Qe2 {[%clk 0:00:34]}  Rb6 {[%clk 0:00:17]} 31. Qe3 {[%clk 0:00:32]}  Qc7 {[%clk 0:00:17]} 32. Be2 {[%clk 0:00:28]}  b4 {[%clk 0:00:15]} 33. Bg4 {[%clk 0:00:25]}  Bc4 {[%clk 0:00:15]} 34. Bf5 {[%clk 0:00:24]}  Qd8 {[%clk 0:00:14]} 35. Qe1 {[%clk 0:00:20]}  a5 {[%clk 0:00:15]} 36. Rd1 {[%clk 0:00:20]}  Qe7 {[%clk 0:00:15]} 37. Qd2 {[%clk 0:00:21]}  a4 {[%clk 0:00:11]} 38. f4 {[%clk 0:00:21]}  exf4 {[%clk 0:00:10]} 39. Qxf4 {[%clk 0:00:22]}  a3 {[%clk 0:00:10]} 40. e5 {[%clk 0:00:20]}  Be6 {[%clk 0:00:05]} 41. Bxe6 {[%clk 0:00:19]}  Rxe6 {[%clk 0:00:06]} 42. Qc4 {[%clk 0:00:17]}  Rxe5 {[%clk 0:00:06]} 43. Qd4 {[%clk 0:00:17]}  Qf6 {[%clk 0:00:03]} 44. Rf1 {[%clk 0:00:17]}  Rf5 {[%clk 0:00:02]} 45. Qxf6+ {[%clk 0:00:17]}  Kxf6 {[%clk 0:00:03]} 46. Rxf5+ {[%clk 0:00:17]}  Kxf5 {[%clk 0:00:04]} 47. Rf3+ {[%clk 0:00:17]}  Ke4 {[%clk 0:00:04]} 48. Rxf7 {[%clk 0:00:17]}  Kd4 {[%clk 0:00:04]} 49. Re7 {[%clk 0:00:18]}  Kc3 {[%clk 0:00:04]} 50. Rc7+ {[%clk 0:00:18]}  Kb2 {[%clk 0:00:05]} 51. Kf2 {[%clk 0:00:19]}  a2 {[%clk 0:00:04]} 52. Ra7 {[%clk 0:00:19]}  a1=Q {[%clk 0:00:04]} 53. Rxa1 {[%clk 0:00:20]}  Kxa1 {[%clk 0:00:05]} 54. c4 {[%clk 0:00:21]}  bxc3 {[%clk 0:00:05]} 55. Ke3 {[%clk 0:00:20]}  c2 {[%clk 0:00:06]} 56. Ke4 {[%clk 0:00:21]}  c1=Q {[%clk 0:00:06]} 57. Kf5 {[%clk 0:00:22]}  Qf4+ {[%clk 0:00:07]} 58. Kg6 {[%clk 0:00:23]}  g4 {[%clk 0:00:07]} 59. g3 {[%clk 0:00:23]}  Qg5+ {[%clk 0:00:07]} 60. Kh7 {[%clk 0:00:24]}  Kb2 {[%clk 0:00:07]} 61. Kh8 {[%clk 0:00:24]}  Kc3 {[%clk 0:00:08]} 62. Kh7 {[%clk 0:00:25]}  Kd4 {[%clk 0:00:09]} 63. Kh8 {[%clk 0:00:24]}  Ke5 {[%clk 0:00:10]} 64. Kh7 {[%clk 0:00:25]}  Kf6 {[%clk 0:00:11]} 65. Kh8 {[%clk 0:00:26]}  Qg7# {[%clk 0:00:11]} 0-1


[Site "https://www.chess.com"]

[Event "Titled Tuesday Blitz June 13 Late 2023"]
[White "Duda, Jan-Krzysztof"]
[Black "Korobov, Anton"]
[WhiteFideId "1170546"]
[BlackFideId "14105730"]
[WhiteElo "2783"]
[BlackElo "2638"]
[Result "1-0"]
[Round "10"]
[TimeControl "180+2"]
[Date "2023.06.13"]
[WhiteClock "0:00:01"]
[BlackClock "0:00:00"]
[Board "1"]

1. e4 {[%clk 0:03:00]}  c5 {[%clk 0:03:00]} 2. Nf3 {[%clk 0:03:01]}  d6 {[%clk 0:03:00]} 3. Bb5+ {[%clk 0:03:02]}  Nd7 {[%clk 0:02:59]} 4. c3 {[%clk 0:03:02]}  Nf6 {[%clk 0:02:58]} 5. Qe2 {[%clk 0:03:02]}  a6 {[%clk 0:02:56]} 6. Ba4 {[%clk 0:03:02]}  e6 {[%clk 0:02:52]} 7. O-O {[%clk 0:03:01]}  Be7 {[%clk 0:02:50]} 8. d4 {[%clk 0:03:01]}  b5 {[%clk 0:02:51]} 9. Bc2 {[%clk 0:03:01]}  Bb7 {[%clk 0:02:51]} 10. h3 {[%clk 0:02:52]}  Qc7 {[%clk 0:02:48]} 11. Bd3 {[%clk 0:02:46]}  O-O {[%clk 0:02:45]} 12. Nbd2 {[%clk 0:02:38]}  e5 {[%clk 0:02:38]} 13. d5 {[%clk 0:02:38]}  c4 {[%clk 0:02:38]} 14. Bc2 {[%clk 0:02:38]}  Rfc8 {[%clk 0:02:29]} 15. Rd1 {[%clk 0:02:35]}  a5 {[%clk 0:02:26]} 16. Nf1 {[%clk 0:02:28]}  Nc5 {[%clk 0:02:26]} 17. g4 {[%clk 0:02:15]}  b4 {[%clk 0:02:18]} 18. Ng3 {[%clk 0:02:12]}  Ba6 {[%clk 0:02:15]} 19. Nf5 {[%clk 0:02:02]}  Bf8 {[%clk 0:02:12]} 20. Nh2 {[%clk 0:01:17]}  Nd3 {[%clk 0:01:50]} 21. g5 {[%clk 0:01:17]}  Nd7 {[%clk 0:01:44]} 22. Ng4 {[%clk 0:01:14]}  Kh8 {[%clk 0:01:28]} 23. Kh2 {[%clk 0:01:13]}  Qd8 {[%clk 0:01:20]} 24. h4 {[%clk 0:01:07]}  N7c5 {[%clk 0:01:16]} 25. Rg1 {[%clk 0:01:04]}  Rc7 {[%clk 0:01:13]} 26. Qf3 {[%clk 0:00:53]}  Bc8 {[%clk 0:01:11]} 27. Rb1 {[%clk 0:00:49]}  Nxc1 {[%clk 0:01:06]} 28. Rbxc1 {[%clk 0:00:49]}  Rb8 {[%clk 0:01:07]} 29. Nge3 {[%clk 0:00:42]}  Nd3 {[%clk 0:00:54]} 30. Bxd3 {[%clk 0:00:41]}  cxd3 {[%clk 0:00:55]} 31. c4 {[%clk 0:00:41]}  g6 {[%clk 0:00:48]} 32. Rcd1 {[%clk 0:00:21]}  gxf5 {[%clk 0:00:39]} 33. exf5 {[%clk 0:00:22]}  e4 {[%clk 0:00:27]} 34. Qxe4 {[%clk 0:00:23]}  Qe7 {[%clk 0:00:27]} 35. Qxd3 {[%clk 0:00:09]}  Qe5+ {[%clk 0:00:27]} 36. Kh1 {[%clk 0:00:09]}  Qxb2 {[%clk 0:00:27]} 37. Rde1 {[%clk 0:00:02]}  Qc3 {[%clk 0:00:23]} 38. Qe4 {[%clk 0:00:02]}  Re7 {[%clk 0:00:22]} 39. Qf3 {[%clk 0:00:02]}  a4 {[%clk 0:00:20]} 40. g6 {[%clk 0:00:02]}  Qf6 {[%clk 0:00:19]} 41. gxh7 {[%clk 0:00:01]}  Qxh4+ {[%clk 0:00:18]} 42. Kg2 {[%clk 0:00:01]}  Bh6 {[%clk 0:00:16]} 43. Rh1 {[%clk 0:00:01]}  Qg5+ {[%clk 0:00:16]} 44. Kf1 {[%clk 0:00:01]}  Rxe3 {[%clk 0:00:16]} 45. Rxe3 {[%clk 0:00:01]}  Bd7 {[%clk 0:00:14]} 46. Rh5 {[%clk 0:00:01]}  Qf6 {[%clk 0:00:14]} 47. Re4 {[%clk 0:00:01]}  b3 {[%clk 0:00:14]} 48. axb3 {[%clk 0:00:01]}  axb3 {[%clk 0:00:15]} 49. Re1 {[%clk 0:00:01]}  b2 {[%clk 0:00:15]} 50. Rb1 {[%clk 0:00:02]}  Qxf5 {[%clk 0:00:00]} 51. Rxf5 {[%clk 0:00:01]} 1-0


[Site "https://www.chess.com"]

[Event "Titled Tuesday Blitz June 13 Late 2023"]
[White "Paravyan, David"]
[Black "Eljanov, Pavel"]
[WhiteFideId "4194985"]
[BlackFideId "14102951"]
[WhiteElo "2563"]
[BlackElo "2598"]
[Result "1-0"]
[Round "10"]
[TimeControl "180+2"]
[Date "2023.06.13"]
[WhiteClock "0:00:26"]
[BlackClock "0:00:00"]
[Board "2"]

1. e4 {[%clk 0:03:00]}  e5 {[%clk 0:03:00]} 2. Nf3 {[%clk 0:03:00]}  Nc6 {[%clk 0:03:00]} 3. Bb5 {[%clk 0:03:00]}  a6 {[%clk 0:03:01]} 4. Ba4 {[%clk 0:03:00]}  Nf6 {[%clk 0:03:01]} 5. O-O {[%clk 0:03:00]}  Be7 {[%clk 0:03:01]} 6. Re1 {[%clk 0:03:01]}  b5 {[%clk 0:03:01]} 7. Bb3 {[%clk 0:03:02]}  O-O {[%clk 0:03:01]} 8. h3 {[%clk 0:03:02]}  Bb7 {[%clk 0:03:01]} 9. d3 {[%clk 0:03:02]}  d5 {[%clk 0:03:02]} 10. exd5 {[%clk 0:03:02]}  Nxd5 {[%clk 0:03:03]} 11. Nxe5 {[%clk 0:03:02]}  Nxe5 {[%clk 0:03:02]} 12. Rxe5 {[%clk 0:03:03]}  Qd6 {[%clk 0:03:01]} 13. Re1 {[%clk 0:02:58]}  c5 {[%clk 0:03:01]} 14. Qf3 {[%clk 0:02:55]}  Qd7 {[%clk 0:02:38]} 15. Qg4 {[%clk 0:02:00]}  f5 {[%clk 0:02:33]} 16. Qe2 {[%clk 0:02:01]}  Kh8 {[%clk 0:01:56]} 17. Qe6 {[%clk 0:01:59]}  Qxe6 {[%clk 0:01:40]} 18. Rxe6 {[%clk 0:02:00]}  Rfe8 {[%clk 0:01:36]} 19. Nc3 {[%clk 0:01:29]}  Nxc3 {[%clk 0:01:21]} 20. bxc3 {[%clk 0:01:29]}  Bf6 {[%clk 0:01:21]} 21. Bd2 {[%clk 0:00:59]}  a5 {[%clk 0:01:21]} 22. Rb6 {[%clk 0:00:43]}  Ba6 {[%clk 0:00:48]} 23. Bd5 {[%clk 0:00:40]}  Ra7 {[%clk 0:00:48]} 24. Re1 {[%clk 0:00:34]}  Rxe1+ {[%clk 0:00:45]} 25. Bxe1 {[%clk 0:00:35]}  h5 {[%clk 0:00:37]} 26. Be6 {[%clk 0:00:32]}  f4 {[%clk 0:00:25]} 27. Bf5 {[%clk 0:00:30]}  Kg8 {[%clk 0:00:19]} 28. Bg6 {[%clk 0:00:30]}  Kf8 {[%clk 0:00:18]} 29. Bd2 {[%clk 0:00:31]}  b4 {[%clk 0:00:00]} 30. Bxf4 {[%clk 0:00:26]} 1-0


[Site "https://www.chess.com"]

[Event "Titled Tuesday Blitz June 13 Late 2023"]
[White "Rodrigue-Lemieux, Shawn"]
[Black "Deac, Bogdan-Daniel"]
[WhiteFideId "2620049"]
[BlackFideId "1226380"]
[WhiteElo "2405"]
[BlackElo "2644"]
[Result "1/2-1/2"]
[Round "10"]
[TimeControl "180+2"]
[Date "2023.06.13"]
[WhiteClock "0:00:24"]
[BlackClock "0:00:10"]
[Board "5"]

1. e4 {[%clk 0:03:00]}  c6 {[%clk 0:02:59]} 2. Nc3 {[%clk 0:02:57]}  d5 {[%clk 0:03:00]} 3. Nf3 {[%clk 0:02:58]}  a6 {[%clk 0:02:43]} 4. d4 {[%clk 0:02:57]}  Bg4 {[%clk 0:02:43]} 5. h3 {[%clk 0:02:56]}  Bh5 {[%clk 0:02:42]} 6. Bd3 {[%clk 0:02:48]}  e6 {[%clk 0:02:42]} 7. Be3 {[%clk 0:02:47]}  Nf6 {[%clk 0:02:37]} 8. g4 {[%clk 0:02:41]}  Bg6 {[%clk 0:02:31]} 9. Ne5 {[%clk 0:02:41]}  Bxe4 {[%clk 0:02:04]} 10. Nxe4 {[%clk 0:02:40]}  dxe4 {[%clk 0:01:47]} 11. Bc4 {[%clk 0:02:40]}  Nd5 {[%clk 0:01:42]} 12. Qe2 {[%clk 0:02:37]}  f6 {[%clk 0:01:38]} 13. Bd2 {[%clk 0:02:33]}  fxe5 {[%clk 0:01:37]} 14. Qxe4 {[%clk 0:02:32]}  Nd7 {[%clk 0:01:21]} 15. O-O-O {[%clk 0:02:30]}  Qc7 {[%clk 0:00:59]} 16. Rhe1 {[%clk 0:02:30]}  O-O-O {[%clk 0:00:55]} 17. dxe5 {[%clk 0:02:31]}  Nc5 {[%clk 0:00:40]} 18. Qg2 {[%clk 0:02:28]}  g6 {[%clk 0:00:34]} 19. f4 {[%clk 0:02:27]}  Be7 {[%clk 0:00:34]} 20. Rf1 {[%clk 0:02:25]}  Rhf8 {[%clk 0:00:34]} 21. Rde1 {[%clk 0:02:23]}  Kb8 {[%clk 0:00:22]} 22. a3 {[%clk 0:02:15]}  Na4 {[%clk 0:00:18]} 23. Bb3 {[%clk 0:02:07]}  Nc5 {[%clk 0:00:18]} 24. Bc4 {[%clk 0:02:07]}  Qb6 {[%clk 0:00:17]} 25. Kb1 {[%clk 0:02:00]}  Na4 {[%clk 0:00:13]} 26. Bb3 {[%clk 0:02:01]}  Nc5 {[%clk 0:00:13]} 27. Bc4 {[%clk 0:02:01]}  Ka8 {[%clk 0:00:14]} 28. Ka1 {[%clk 0:01:59]}  Qc7 {[%clk 0:00:11]} 29. Bc1 {[%clk 0:01:59]}  Rf7 {[%clk 0:00:05]} 30. f5 {[%clk 0:01:38]}  gxf5 {[%clk 0:00:05]} 31. gxf5 {[%clk 0:01:38]}  exf5 {[%clk 0:00:05]} 32. e6 {[%clk 0:01:36]}  Rff8 {[%clk 0:00:06]} 33. Qg7 {[%clk 0:01:33]}  Ne4 {[%clk 0:00:06]} 34. Qxh7 {[%clk 0:01:31]}  Nd6 {[%clk 0:00:06]} 35. Bd3 {[%clk 0:01:30]}  Rh8 {[%clk 0:00:05]} 36. Qg7 {[%clk 0:01:28]}  Rdg8 {[%clk 0:00:05]} 37. Qd4 {[%clk 0:01:26]}  Rxh3 {[%clk 0:00:05]} 38. Bxf5 {[%clk 0:01:24]}  Nxf5 {[%clk 0:00:05]} 39. Rxf5 {[%clk 0:01:24]}  Qd8 {[%clk 0:00:05]} 40. Ref1 {[%clk 0:01:24]}  Rh7 {[%clk 0:00:04]} 41. Kb1 {[%clk 0:01:23]}  Rhh8 {[%clk 0:00:04]} 42. Rf7 {[%clk 0:01:22]}  Re8 {[%clk 0:00:04]} 43. Rd1 {[%clk 0:01:19]}  Qc8 {[%clk 0:00:03]} 44. c4 {[%clk 0:01:17]}  Nc7 {[%clk 0:00:03]} 45. Be3 {[%clk 0:01:17]}  c5 {[%clk 0:00:04]} 46. Qd7 {[%clk 0:01:05]}  Nxe6 {[%clk 0:00:03]} 47. Qxc8+ {[%clk 0:00:57]}  Rxc8 {[%clk 0:00:04]} 48. Rxe7 {[%clk 0:00:58]}  Rhe8 {[%clk 0:00:04]} 49. Rdd7 {[%clk 0:00:55]}  Rxe7 {[%clk 0:00:05]} 50. Rxe7 {[%clk 0:00:56]}  Rc6 {[%clk 0:00:05]} 51. Kc2 {[%clk 0:00:55]}  b6 {[%clk 0:00:05]} 52. Kd3 {[%clk 0:00:54]}  b5 {[%clk 0:00:03]} 53. Ke4 {[%clk 0:00:54]}  Nc7 {[%clk 0:00:03]} 54. Rd7 {[%clk 0:00:45]}  Kb7 {[%clk 0:00:03]} 55. Bf4 {[%clk 0:00:45]}  bxc4 {[%clk 0:00:03]} 56. Rh7 {[%clk 0:00:42]}  Kb6 {[%clk 0:00:03]} 57. Bxc7+ {[%clk 0:00:29]}  Rxc7 {[%clk 0:00:04]} 58. Rxc7 {[%clk 0:00:29]}  Kxc7 {[%clk 0:00:05]} 59. Kd5 {[%clk 0:00:30]}  Kb6 {[%clk 0:00:06]} 60. Kxc4 {[%clk 0:00:23]}  Kc6 {[%clk 0:00:06]} 61. a4 {[%clk 0:00:20]}  Kd6 {[%clk 0:00:05]} 62. b4 {[%clk 0:00:20]}  cxb4 {[%clk 0:00:05]} 63. Kxb4 {[%clk 0:00:20]}  Kc6 {[%clk 0:00:06]} 64. Ka5 {[%clk 0:00:21]}  Kb7 {[%clk 0:00:06]} 65. Kb4 {[%clk 0:00:22]}  Kb6 {[%clk 0:00:07]} 66. Kc4 {[%clk 0:00:22]}  Kc6 {[%clk 0:00:08]} 67. Kb4 {[%clk 0:00:23]}  Kb6 {[%clk 0:00:09]} 68. Kc4 {[%clk 0:00:23]}  Kc6 {[%clk 0:00:09]} 69. Kb4 {[%clk 0:00:24]}  Kb6 {[%clk 0:00:10]} 1/2-1/2


[Site "https://www.chess.com"]